{"text_format":"2","workbook":"xlsx","n_sheets":3,"sheets":["Лист1","Лист2","Лист3"],"not_rendered":{"charts":0,"images":0,"macros":0,"external_links":0,"defined_names":0,"comments":0,"pivot_tables":0},"unopened":[],"bounds":{"document_bytes":16777216,"sheet_cells":100000,"run_cost":"one","rows_first":2000,"rows_last":500,"rows_between":2000,"halvings":0,"cell_chars":16384,"cell_head_chars":4096},"cells_cut":0,"cells_raw":0,"read":"whole","date_system":"1900"}

{"sheet":"Лист1","index":0,"n_rows":29,"n_cols":5,"rows_kept":29,"cut":false,"hidden":false,"merged":[]}
["Название запчасти","Количество","Цена (примерная)","Итого","Статус покупки"]
["Вилка Fox 36 Float 160 Fit RLC Taper Steer 2,03 кг",1,30000,{"$f":"$B2*$C2","v":30000}]
["Передняя втулка",1,5000,{"$f":"$B3*$C3","v":5000}]
["Задняя втулка",1,8000,8000]
["Спицы",64,25,1600]
["Флиппер",2,125,250]
["Передняя покрышка Kenda Nevegal 2,5",1,800,800]
["Задняя покрышка Kenda Nevegal 2,5",1,800,800]
["Тормозной диск 220 мм",2,3000,6000]
["Передний тормоз Shimano Saint",1,3500,3500]
["Задний тормоз Shimano Saint",1,5500,5500]
["Переходники на тормоза",1,350,350]
["Кассета 8 speed",1,700,700]
["Передняя звезда 44 зуба",1,2100,2100]
["Успокоитель",1,700,700]
["Цепь",1,1500,1500]
["Подседельный штырь",1,1200,1200]
["Рулевая колонка",1,7500,7500]
["Чашки для рулевой колонки",2,2000,4000]
["Проставочные кольца",2,250,500]
["Вынос руля",1,1200,1200]
["Руль",1,1500,1500]
["Грипсы",1,700,700]
["Затычки руля",1,400,400]
["Ниппель спицы",64,5,320]
["Петух",2,250,500]
["Колпачок ниппелей",2,50,100]
[]
["Итого",{"$f":"SUM(D2:D27)","v":84720}]

{"sheet":"Лист2","index":1,"n_rows":0,"n_cols":0,"rows_kept":0,"cut":false,"hidden":false,"merged":[]}

{"sheet":"Лист3","index":2,"n_rows":0,"n_cols":0,"rows_kept":0,"cut":false,"hidden":false,"merged":[]}